[Event "ESP-ch U1700 2024"]
[Site "Albacete"]
[Date "2024.08.27"]
[Round "2.8"]
[White "Muniz Otero, Lucas"]
[Black "Vallina Menendez, Marcos"]
[Result "1-0"]
[ECO "D04"]
[WhiteElo "1605"]
[BlackElo "1680"]
[Annotator "NA RC COMBH"]
[PlyCount "70"]
[EventDate "2024.08.27"]
[EventType "swiss"]
[EventCountry "ESP"]
[SourceTitle "playchess.com"]
[Source "ChessBase"]
[SourceQuality "1"]
[TimeControl "5400+30"]

1. d4 {[%emt 0:00:07]} d5 {[%emt 0:00:09]} 2. Nf3 {[%emt 0:00:04]} Nf6 {[%emt 0:00:07]} 3. e3 {[%emt 0:00:12]} b6 {[%emt 0:00:54]} 4. Bd3 {[%emt 0:01:03]} Bb7 {[%emt 0:00:13]} 5. O-O {[%emt 0:01:39]} e6 {[%emt 0:01:41]} 6. b3 {[%emt 0:01:40]} Nbd7 {[%emt 0:00:19]} 7. Bb2 {[%emt 0:00:18]} Bd6 {[%emt 0:03:41]} 8. Nbd2 {[%emt 0:00:49]} c5 {[%emt 0:00:39]} 9. Ne5 {[%emt 0:00:33]} O-O {[%emt 0:01:19]} 10. f4 {[%emt 0:01:22]} cxd4 {[%emt 0:07:30]} 11. exd4 {[%emt 0:02:46]} Ne4 {[%emt 0:24:57]} 12. c4 {[%emt 0:13:39]} Nxd2 {[%emt 0:04:02]} 13. Qxd2 {[%emt 0:00:14]} Re8 {[%emt 0:15:26]} 14. Qe2 {[%emt 0:06:13]} f5 {[%emt 0:06:55]} 15. Qh5 {[%emt 0:05:37]} Re7 {[%emt 0:05:49]} 16. cxd5 {[%emt 0:04:09]} Nf6 {[%emt 0:01:23]} 17. Qh3 {[%emt 0:04:14]} Bxd5 {[%emt 0:01:00]} 18. Bc4 {[%emt 0:02:09]} Rc8 {[%emt 0:07:11]} 19. Rad1 {[%emt 0:06:03]} a6 {[%emt 0:09:16]} 20. Bxa6 {[%emt 0:01:53]} Rc2 {[%emt 0:01:04]} 21. Rf2 {[%emt 0:00:25]} Qc7 {[%emt 0:01:20]} 22. Bc4 {[%emt 0:00:39]} Rxf2 {[%emt 0:00:38]} 23. Kxf2 {[%emt 0:00:07]} Bxe5 {[%emt 0:00:39]} 24. fxe5 {[%emt 0:03:59]} Ng4+ {[%emt 0:00:26]} 25. Kg1 {[%emt 0:00:41]} Bxc4 {[%emt 0:02:39]} 26. bxc4 {[%emt 0:00:09]} Qxc4 {[%emt 0:00:33]} 27. Rc1 {[%emt 0:01:22]} Qa6 {[%emt 0:00:29]} 28. Qh5 {[%emt 0:02:17]} g6 {[%emt 0:03:34]} 29. Qg5 {[%emt 0:00:19]} Re8 {[%emt 0:00:34]} 30. h3 {[%emt 0:03:23]} Qxa2 {[%emt 0:00:03]} 31. Qd2 {[%emt 0:00:18]} Ne3 {[%emt 0:00:32]} 32. Qxe3 {[%emt 0:02:10]} Qxb2 {[%emt 0:00:10]} 33. Rc7 {[%emt 0:01:12]} Qb4 {[%emt 0:01:12]} 34. Qh6 {[%emt 0:00:12]} Qe1+ 35. Kh2 Qc3 1-0

[Event "ESP-ch U1700 2024"]
[Site "Albacete"]
[Date "2024.08.27"]
[Round "2.9"]
[White "Molina Gomez, Juan Francisco"]
[Black "Perez Odero, Gonzalo"]
[Result "1-0"]
[ECO "A04"]
[WhiteElo "1677"]
[BlackElo "1601"]
[Annotator "NA RC COMBH"]
[PlyCount "79"]
[EventDate "2024.08.27"]
[EventType "swiss"]
[EventCountry "ESP"]
[SourceTitle "playchess.com"]
[Source "ChessBase"]
[SourceQuality "1"]
[TimeControl "5400+30"]

1. Nf3 {[%emt 0:00:06]} a5 {[%emt 0:00:05]} 2. e4 {[%emt 0:00:43]} e6 {[%emt 0:00:04]} 3. d4 {[%emt 0:00:17]} d5 {[%emt 0:00:04]} 4. Nc3 {[%emt 0:04:58]} Nc6 {[%emt 0:01:44]} 5. e5 {[%emt 0:00:24]} f6 {[%emt 0:02:31]} 6. Bb5 {[%emt 0:01:52]} Bd7 {[%emt 0:01:28]} 7. O-O {[%emt 0:00:53]} fxe5 {[%emt 0:00:34]} 8. Bxc6 {[%emt 0:02:04]} Bxc6 {[%emt 0:00:35]} 9. Nxe5 {[%emt 0:00:08]} Nf6 {[%emt 0:01:00]} 10. Re1 {[%emt 0:01:30]} Bd7 {[%emt 0:02:02]} 11. Bg5 {[%emt 0:02:59]} c6 {[%emt 0:02:55]} 12. Qe2 {[%emt 0:06:59]} Qe7 {[%emt 0:02:40]} 13. Na4 {[%emt 0:02:07]} O-O-O {[%emt 0:05:21]} 14. Nb6+ {[%emt 0:01:25]} Kc7 {[%emt 0:00:08]} 15. Nbxd7 {[%emt 0:00:39]} Rxd7 {[%emt 0:00:01]} 16. Nxd7 {[%emt 0:00:31]} Kxd7 {[%emt 0:00:10]} 17. c4 {[%emt 0:02:33]} h6 {[%emt 0:00:13]} 18. Bf4 {[%emt 0:01:43]} g5 {[%emt 0:00:30]} 19. Be5 {[%emt 0:03:02]} Bg7 {[%emt 0:00:45]} 20. cxd5 {[%emt 0:01:14]} exd5 {[%emt 0:00:40]} 21. Rac1 {[%emt 0:03:34]} Re8 {[%emt 0:00:59]} 22. Qf3 {[%emt 0:15:20]} Qe6 {[%emt 0:04:23]} 23. h3 {[%emt 0:04:37]} g4 {[%emt 0:01:33]} 24. hxg4 {[%emt 0:00:36]} Nxg4 {[%emt 0:00:12]} 25. Qb3 {[%emt 0:05:30]} b5 {[%emt 0:04:00]} 26. Qc3 {[%emt 0:01:06]} Bxe5 {[%emt 0:01:37]} 27. dxe5 {[%emt 0:00:27]} b4 {[%emt 0:02:15]} 28. Qc5 {[%emt 0:01:44]} Rg8 {[%emt 0:04:32]} 29. f4 {[%emt 0:03:58]} Ra8 {[%emt 0:03:21]} 30. f5 {[%emt 0:01:17]} Qxf5 {[%emt 0:01:09]} 31. e6+ {[%emt 0:01:57]} Ke8 {[%emt 0:01:08]} 32. Qxc6+ {[%emt 0:00:22]} Ke7 {[%emt 0:00:01]} 33. Qd7+ {[%emt 0:00:41]} Kf6 {[%emt 0:00:24]} 34. Rf1 {[%emt 0:00:38]} Qxf1+ {[%emt 0:02:38]} 35. Rxf1+ {[%emt 0:00:09]} Kg5 {[%emt 0:00:04]} 36. Qg7+ {[%emt 0:00:24]} Kh5 {[%emt 0:00:04]} 37. Rf4 {[%emt 0:01:14]} Ne3 {[%emt 0:00:24]} 38. g4+ {[%emt 0:00:38]} Kh4 {[%emt 0:00:06]} 39. Qxh6+ {[%emt 0:00:30]} Kg3 {[%emt 0:00:06]} 40. Qh2# {[%emt 0:00:23]} 1-0

[Event "ESP-ch U1700 2024"]
[Site "Albacete"]
[Date "2024.08.28"]
[Round "3.1"]
[White "Garcia-Munoz Arias, Diego"]
[Black "Sanchez Elena, Pedro"]
[Result "1-0"]
[ECO "C56"]
[WhiteElo "1696"]
[BlackElo "1641"]
[Annotator "NA RC COMBH"]
[PlyCount "69"]
[EventDate "2024.08.27"]
[EventType "swiss"]
[EventCountry "ESP"]
[SourceTitle "playchess.com"]
[Source "ChessBase"]
[SourceQuality "1"]
[TimeControl "5400+30"]

1. e4 e5 2. Nf3 Nc6 3. d4 exd4 4. Bc4 Nf6 5. O-O Nxe4 6. Re1 d5 7. Bxd5 Qxd5 8. Nc3 Qa5 9. Rxe4+ Be6 10. Nxd4 O-O-O 11. Qd3 Bf5 12. Nxc6 bxc6 13. Ra4 Qxa4 14. Qxf5+ Kb8 15. Bg5 Qd4 16. Bxd8 Qxd8 17. Rd1 Bd6 18. g3 Qe7 19. Qa5 Bb4 20. Qa6 Bxc3 21. bxc3 Qc5 22. Rb1+ Qb6 23. Rxb6+ cxb6 24. Qc4 f6 25. Qxc6 Rc8 26. Qd7 Rxc3 27. Qxg7 Rxc2 28. Qf8+ Kb7 29. Qe7+ Ka6 30. Qa3+ Kb7 31. Qf3+ Kb8 32. Qxf6 Rc7 33. f4 Kc8 34. Qh8+ Kb7 35. f5 1-0

[Event "ESP-ch U1700 2024"]
[Site "Albacete"]
[Date "2024.08.28"]
[Round "3.2"]
[White "Garcia Sahuquillo, Marcos Antonio"]
[Black "Perez Fernandez, Alvaro"]
[Result "0-1"]
[ECO "A46"]
[WhiteElo "1690"]
[BlackElo "1638"]
[Annotator "NA RC COMBH"]
[PlyCount "98"]
[EventDate "2024.08.27"]
[EventType "swiss"]
[EventCountry "ESP"]
[SourceTitle "playchess.com"]
[Source "ChessBase"]
[SourceQuality "1"]
[TimeControl "5400+30"]

1. d4 {[%emt 0:00:03]} Nf6 {[%emt 0:00:26]} 2. Nf3 {[%emt 0:00:07]} d6 {[%emt 0:00:49]} 3. g3 {[%emt 0:00:24]} g6 {[%emt 0:01:18]} 4. b3 {[%emt 0:00:10]} Bg7 {[%emt 0:00:50]} 5. Bb2 {[%emt 0:00:07]} O-O {[%emt 0:01:05]} 6. Bg2 {[%emt 0:00:19]} Nbd7 {[%emt 0:00:35]} 7. Nbd2 {[%emt 0:00:28]} Re8 {[%emt 0:01:21]} 8. O-O {[%emt 0:00:35]} c6 {[%emt 0:00:56]} 9. c4 {[%emt 0:00:11]} e5 {[%emt 0:00:55]} 10. dxe5 {[%emt 0:00:25]} dxe5 {[%emt 0:00:11]} 11. e4 {[%emt 0:00:33]} Qc7 {[%emt 0:02:35]} 12. Qc2 {[%emt 0:00:09]} a5 {[%emt 0:02:21]} 13. Rad1 {[%emt 0:00:23]} Nc5 {[%emt 0:01:56]} 14. Rfe1 {[%emt 0:03:41]} Bg4 {[%emt 0:02:06]} 15. a3 {[%emt 0:00:57]} Rad8 {[%emt 0:04:21]} 16. Nf1 {[%emt 0:04:33]} Rxd1 {[%emt 0:03:39]} 17. Rxd1 {[%emt 0:00:08]} Ncxe4 {[%emt 0:01:43]} 18. Re1 {[%emt 0:06:35]} Bxf3 {[%emt 0:02:09]} 19. Bxf3 {[%emt 0:00:30]} Nc5 {[%emt 0:00:30]} 20. b4 {[%emt 0:01:02]} axb4 {[%emt 0:01:03]} 21. axb4 {[%emt 0:00:08]} Ncd7 {[%emt 0:01:38]} 22. c5 {[%emt 0:01:01]} Nd5 {[%emt 0:02:29]} 23. Qd2 {[%emt 0:12:14]} N7f6 {[%emt 0:04:53]} 24. Ne3 {[%emt 0:01:08]} Nxe3 {[%emt 0:04:02]} 25. Qxe3 {[%emt 0:01:53]} Nd5 {[%emt 0:01:46]} 26. Qd2 {[%emt 0:01:07]} Qd7 {[%emt 0:04:25]} 27. Bxd5 {[%emt 0:10:34]} Qxd5 {[%emt 0:00:08]} 28. Qxd5 {[%emt 0:00:16]} cxd5 {[%emt 0:00:05]} 29. b5 {[%emt 0:00:19]} Rc8 {[%emt 0:01:43]} 30. Rc1 {[%emt 0:01:06]} e4 {[%emt 0:00:25]} 31. Bxg7 {[%emt 0:01:00]} Kxg7 {[%emt 0:00:06]} 32. c6 {[%emt 0:00:13]} bxc6 {[%emt 0:00:07]} 33. Rxc6 {[%emt 0:00:14]} Rb8 {[%emt 0:00:05]} 34. b6 {[%emt 0:00:09]} d4 {[%emt 0:03:23]} 35. Kf1 {[%emt 0:00:07]} d3 {[%emt 0:00:18]} 36. Ke1 {[%emt 0:00:04]} f5 {[%emt 0:02:09]} 37. Rc7+ {[%emt 0:01:37]} Kf6 {[%emt 0:00:13]} 38. b7 {[%emt 0:00:14]} h6 {[%emt 0:01:34]} 39. Kd2 {[%emt 0:00:17]} Ke5 {[%emt 0:03:19]} 40. Ke3 {[%emt 0:00:42]} Kd6 {[%emt 0:01:28]} 41. Rg7 {[%emt 0:00:27]} g5 {[%emt 0:01:44]} 42. h4 {[%emt 0:02:23]} gxh4 {[%emt 0:02:49]} 43. gxh4 {[%emt 0:00:06]} Kc6 {[%emt 0:05:31]} 44. Rg6+ {[%emt 0:08:32]} Kxb7 {[%emt 0:00:13]} 45. Rxh6 {[%emt 0:00:12]} Kc7 {[%emt 0:02:02]} 46. f3 {[%emt 0:03:28]} Rd8 {[%emt 0:04:53]} 47. Kd2 {[%emt 0:03:02]} e3+ {[%emt 0:00:37]} 48. Kd1 {[%emt 0:00:17]} e2+ {[%emt 0:00:46]} 49. Kd2 {[%emt 0:00:14]} Re8 {[%emt 0:00:04]} 0-1

[Event "ESP-ch U1700 2024"]
[Site "Albacete"]
[Date "2024.08.28"]
[Round "3.3"]
[White "Loro Garcia de Leon, Jose Juan"]
[Black "Saiz Alonso de Armino, Daniel"]
[Result "1/2-1/2"]
[ECO "C17"]
[WhiteElo "1643"]
[BlackElo "1689"]
[Annotator "NA RC COMBH"]
[PlyCount "64"]
[EventDate "2024.08.27"]
[EventType "swiss"]
[EventCountry "ESP"]
[SourceTitle "playchess.com"]
[Source "ChessBase"]
[SourceQuality "1"]
[TimeControl "5400+30"]

1. e4 {[%emt 0:00:15]} e6 {[%emt 0:00:17]} 2. Nc3 {[%emt 0:00:15]} d5 {[%emt 0:00:21]} 3. d4 {[%emt 0:00:34]} Bb4 {[%emt 0:00:15]} 4. e5 {[%emt 0:01:03]} c5 {[%emt 0:00:35]} 5. Bb5+ {[%emt 0:00:38]} Bd7 {[%emt 0:00:42]} 6. Bxd7+ {[%emt 0:00:34]} Nxd7 {[%emt 0:00:09]} 7. Nf3 {[%emt 0:00:47]} Ne7 {[%emt 0:06:11]} 8. Be3 {[%emt 0:01:39]} Nf5 {[%emt 0:01:50]} 9. O-O {[%emt 0:02:39]} a6 {[%emt 0:01:32]} 10. a3 {[%emt 0:01:33]} Bxc3 {[%emt 0:02:28]} 11. bxc3 {[%emt 0:00:12]} c4 {[%emt 0:00:37]} 12. Bg5 {[%emt 0:04:01]} Qc7 {[%emt 0:01:08]} 13. g4 {[%emt 0:01:25]} h6 {[%emt 0:01:59]} 14. gxf5 {[%emt 0:01:19]} hxg5 {[%emt 0:01:27]} 15. fxe6 {[%emt 0:00:49]} fxe6 {[%emt 0:00:50]} 16. Nxg5 {[%emt 0:00:39]} Nf8 {[%emt 0:09:49]} 17. Qg4 {[%emt 0:02:05]} Qe7 {[%emt 0:01:37]} 18. f4 {[%emt 0:02:12]} g6 {[%emt 0:02:00]} 19. h4 {[%emt 0:03:22]} O-O-O {[%emt 0:02:30]} 20. a4 {[%emt 0:02:29]} Re8 {[%emt 0:01:59]} 21. Kg2 {[%emt 0:01:24]} Nd7 {[%emt 0:07:54]} 22. Kg3 {[%emt 0:02:13]} Nb8 {[%emt 0:03:34]} 23. Rfb1 {[%emt 0:03:29]} Nc6 24. Rb6 {[%emt 0:01:53]} Qd7 {[%emt 0:11:41]} 25. Rab1 {[%emt 0:01:10]} Ne7 {[%emt 0:04:51]} 26. Rxb7 {[%emt 0:13:46]} Nf5+ {[%emt 0:05:36]} 27. Kf2 {[%emt 0:01:53]} Qxb7 {[%emt 0:03:14]} 28. Rxb7 {[%emt 0:00:22]} Kxb7 {[%emt 0:00:13]} 29. Nf7 {[%emt 0:06:33]} Rhg8 {[%emt 0:03:57]} 30. Nd6+ {[%emt 0:04:50]} Nxd6 {[%emt 0:00:25]} 31. exd6 {[%emt 0:01:44]} Kc6 {[%emt 0:01:11]} 32. Qg3 Rd8 1/2-1/2

[Event "ESP-ch U1700 2024"]
[Site "Albacete"]
[Date "2024.08.28"]
[Round "3.4"]
[White "Muniz Otero, Lucas"]
[Black "Lopez Milian, Adela"]
[Result "0-1"]
[ECO "A08"]
[WhiteElo "1605"]
[BlackElo "1681"]
[Annotator "NA RC COMBH"]
[PlyCount "64"]
[EventDate "2024.08.27"]
[EventType "swiss"]
[EventCountry "ESP"]
[SourceTitle "playchess.com"]
[Source "ChessBase"]
[SourceQuality "1"]
[TimeControl "5400+30"]

1. e4 {[%emt 0:00:03]} e6 {[%emt 0:00:04]} 2. d3 {[%emt 0:00:18]} d5 {[%emt 0:00:09]} 3. Nd2 {[%emt 0:00:04]} c5 {[%emt 0:00:13]} 4. Ngf3 {[%emt 0:00:56]} Nc6 {[%emt 0:00:08]} 5. g3 {[%emt 0:00:38]} Nf6 {[%emt 0:01:55]} 6. Bg2 {[%emt 0:01:13]} Be7 {[%emt 0:01:00]} 7. O-O O-O {[%emt 0:00:05]} 8. Re1 {[%emt 0:00:24]} a6 {[%emt 0:01:04]} 9. e5 {[%emt 0:00:24]} Nd7 {[%emt 0:00:11]} 10. Nf1 {[%emt 0:00:25]} b5 {[%emt 0:01:06]} 11. h4 {[%emt 0:03:47]} h6 {[%emt 0:01:25]} 12. N1h2 {[%emt 0:03:07]} Qc7 {[%emt 0:04:33]} 13. Bf4 {[%emt 0:00:50]} Bb7 {[%emt 0:02:12]} 14. Ng4 {[%emt 0:08:15]} Rfe8 {[%emt 0:09:05]} 15. Qd2 {[%emt 0:07:00]} Bf8 {[%emt 0:20:55]} 16. Bxh6 {[%emt 0:16:53]} gxh6 {[%emt 0:01:27]} 17. Nxh6+ {[%emt 0:00:23]} Bxh6 {[%emt 0:18:58]} 18. Qxh6 {[%emt 0:00:00]} Nf8 {[%emt 0:02:57]} 19. Ng5 {[%emt 0:06:03]} Nxe5 {[%emt 0:01:37]} 20. Qf6 {[%emt 0:01:15]} Ng4 {[%emt 0:04:46]} 21. Qf3 {[%emt 0:01:11]} f5 {[%emt 0:03:08]} 22. Bh3 {[%emt 0:02:22]} Nf6 {[%emt 0:02:07]} 23. h5 {[%emt 0:01:35]} d4 {[%emt 0:02:38]} 24. Qd1 {[%emt 0:02:18]} Qg7 {[%emt 0:01:46]} 25. f4 {[%emt 0:05:31]} N6h7 {[%emt 0:01:20]} 26. Qd2 {[%emt 0:01:25]} Nxg5 {[%emt 0:02:58]} 27. fxg5 {[%emt 0:00:12]} Nh7 {[%emt 0:00:58]} 28. g6 {[%emt 0:00:45]} Nf6 {[%emt 0:00:22]} 29. Qg5 {[%emt 0:01:12]} Nd7 {[%emt 0:04:38]} 30. h6 {[%emt 0:07:28]} Qf6 {[%emt 0:01:31]} 31. Qh5 {[%emt 0:01:41]} Ne5 {[%emt 0:02:58]} 32. g7 {[%emt 0:02:08]} Nf3+ {[%emt 0:01:03]} 0-1

[Event "ESP-ch U1700 2024"]
[Site "Albacete"]
[Date "2024.08.28"]
[Round "3.5"]
[White "Trujillo Torres, Alvaro"]
[Black "Molina Gomez, Juan Francisco"]
[Result "0-1"]
[ECO "B34"]
[WhiteElo "1595"]
[BlackElo "1677"]
[Annotator "NA RC COMBH"]
[PlyCount "62"]
[EventDate "2024.08.27"]
[EventType "swiss"]
[EventCountry "ESP"]
[SourceTitle "playchess.com"]
[Source "ChessBase"]
[SourceQuality "1"]
[TimeControl "5400+30"]

1. e4 {[%emt 0:00:03]} c5 {[%emt 0:00:48]} 2. Nf3 {[%emt 0:00:08]} Nc6 {[%emt 0:00:12]} 3. d4 {[%emt 0:00:40]} cxd4 {[%emt 0:00:11]} 4. Nxd4 {[%emt 0:00:11]} Nf6 {[%emt 0:00:27]} 5. Nc3 {[%emt 0:00:10]} e5 {[%emt 0:00:41]} 6. Ndb5 {[%emt 0:00:26]} d6 {[%emt 0:00:34]} 7. Nd5 {[%emt 0:01:00]} Nxd5 {[%emt 0:00:14]} 8. exd5 {[%emt 0:00:31]} Nb8 {[%emt 0:00:19]} 9. Be3 {[%emt 0:02:11]} a6 {[%emt 0:01:12]} 10. Nc3 {[%emt 0:01:59]} b5 {[%emt 0:01:55]} 11. Be2 {[%emt 0:06:01]} Be7 {[%emt 0:00:30]} 12. O-O {[%emt 0:00:24]} O-O {[%emt 0:00:11]} 13. a3 {[%emt 0:00:50]} f5 {[%emt 0:01:09]} 14. f4 {[%emt 0:02:36]} Bf6 {[%emt 0:07:49]} 15. Qd2 {[%emt 0:06:37]} Nd7 {[%emt 0:03:07]} 16. Rad1 {[%emt 0:05:06]} Bb7 {[%emt 0:03:00]} 17. fxe5 {[%emt 0:10:22]} Bxe5 {[%emt 0:05:03]} 18. Bd4 {[%emt 0:04:58]} Qh4 {[%emt 0:20:04]} 19. Bxe5 {[%emt 0:04:05]} Nxe5 {[%emt 0:00:03]} 20. Qe3 {[%emt 0:05:33]} Rae8 {[%emt 0:01:37]} 21. Qb6 {[%emt 0:00:50]} Qe7 {[%emt 0:07:26]} 22. a4 {[%emt 0:15:35]} bxa4 {[%emt 0:03:29]} 23. Bxa6 {[%emt 0:01:26]} Bxa6 {[%emt 0:01:22]} 24. Qxa6 {[%emt 0:00:03]} Ng4 {[%emt 0:03:54]} 25. Rf3 {[%emt 0:07:27]} Qh4 {[%emt 0:04:47]} 26. Qxd6 {[%emt 0:09:20]} Re1+ {[%emt 0:03:32]} 27. Rxe1 {[%emt 0:00:18]} Qxe1+ {[%emt 0:00:23]} 28. Rf1 {[%emt 0:00:15]} Qe3+ {[%emt 0:00:13]} 29. Kh1 {[%emt 0:00:47]} Nf2+ {[%emt 0:00:16]} 30. Rxf2 {[%emt 0:00:55]} Qe1+ {[%emt 0:00:25]} 31. Rf1 {[%emt 0:00:47]} Qxf1# {[%emt 0:00:14]} 0-1

[Event "ESP-ch U1700 2024"]
[Site "Albacete"]
[Date "2024.08.28"]
[Round "3.6"]
[White "Solanilla Olcese, Ada"]
[Black "El Ammari Rovira, Yassin Jesus"]
[Result "1/2-1/2"]
[ECO "C02"]
[WhiteElo "1668"]
[BlackElo "1582"]
[Annotator "NA RC COMBH"]
[PlyCount "102"]
[EventDate "2024.08.27"]
[EventType "swiss"]
[EventCountry "ESP"]
[SourceTitle "playchess.com"]
[Source "ChessBase"]
[SourceQuality "1"]
[TimeControl "5400+30"]

1. e4 {[%emt 0:00:02]} e6 {[%emt 0:00:29]} 2. d4 {[%emt 0:00:14]} d5 {[%emt 0:00:33]} 3. e5 {[%emt 0:00:24]} Bd7 {[%emt 0:01:27]} 4. Bd3 {[%emt 0:01:36]} c5 {[%emt 0:01:19]} 5. c3 {[%emt 0:00:33]} Nc6 {[%emt 0:02:11]} 6. Nf3 {[%emt 0:03:58]} Qb6 {[%emt 0:05:19]} 7. Bc2 {[%emt 0:01:32]} cxd4 {[%emt 0:06:55]} 8. cxd4 {[%emt 0:01:02]} Bb4+ {[%emt 0:03:49]} 9. Nc3 {[%emt 0:06:24]} Nge7 {[%emt 0:05:05]} 10. O-O {[%emt 0:03:48]} Ng6 {[%emt 0:08:06]} 11. Qd3 {[%emt 0:13:26]} Bxc3 {[%emt 0:04:53]} 12. Qxc3 {[%emt 0:02:39]} Rc8 {[%emt 0:05:10]} 13. Qd2 {[%emt 0:08:32]} O-O {[%emt 0:08:12]} 14. a3 {[%emt 0:06:26]} Na5 {[%emt 0:03:25]} 15. Qd1 {[%emt 0:16:53]} a6 {[%emt 0:19:40]} 16. h4 {[%emt 0:13:18]} Bb5 {[%emt 0:05:47]} 17. Re1 {[%emt 0:04:10]} Qc6 {[%emt 0:03:33]} 18. Bxg6 {[%emt 0:03:04]} hxg6 {[%emt 0:07:12]} 19. Ng5 {[%emt 0:04:13]} Qc2 {[%emt 0:01:59]} 20. Qf3 {[%emt 0:06:06]} Nb3 {[%emt 0:01:48]} 21. Be3 {[%emt 0:01:27]} Nxa1 {[%emt 0:00:42]} 22. Rc1 {[%emt 0:00:47]} Qf5 {[%emt 0:00:22]} 23. Rxa1 {[%emt 0:00:25]} Qxf3 {[%emt 0:00:31]} 24. Nxf3 {[%emt 0:00:24]} Rc2 {[%emt 0:00:46]} 25. b4 {[%emt 0:00:29]} Ba4 {[%emt 0:00:42]} 26. Ne1 {[%emt 0:00:34]} Rc3 {[%emt 0:00:56]} 27. Bd2 {[%emt 0:00:31]} Rc4 {[%emt 0:00:49]} 28. Be3 {[%emt 0:00:40]} Rfc8 {[%emt 0:00:27]} 29. Nd3 {[%emt 0:00:19]} R4c7 {[%emt 0:02:03]} 30. Nc5 {[%emt 0:00:23]} Bb5 {[%emt 0:00:15]} 31. a4 {[%emt 0:00:24]} Bc4 {[%emt 0:00:06]} 32. a5 {[%emt 0:00:39]} Rb8 {[%emt 0:00:21]} 33. Rb1 {[%emt 0:00:18]} b6 {[%emt 0:00:39]} 34. axb6 Rxb6 {[%emt 0:00:02]} 35. Bg5 {[%emt 0:00:58]} Ra7 {[%emt 0:01:29]} 36. Bd8 {[%emt 0:00:34]} Rb5 {[%emt 0:00:23]} 37. Ba5 {[%emt 0:00:15]} Ba2 {[%emt 0:00:38]} 38. Rb2 {[%emt 0:00:24]} Bc4 {[%emt 0:00:04]} 39. f3 {[%emt 0:00:38]} Ra8 {[%emt 0:00:31]} 40. Kf2 {[%emt 0:00:51]} Ra7 {[%emt 0:01:07]} 41. Ke3 {[%emt 0:00:06]} Kf8 {[%emt 0:00:09]} 42. Kd2 {[%emt 0:00:29]} Ke7 {[%emt 0:00:30]} 43. g3 {[%emt 0:00:23]} Ra8 {[%emt 0:00:27]} 44. f4 {[%emt 0:00:26]} f6 {[%emt 0:00:51]} 45. Kc3 {[%emt 0:00:33]} fxe5 {[%emt 0:00:34]} 46. dxe5 {[%emt 0:01:21]} Ra7 {[%emt 0:00:33]} 47. Kd4 {[%emt 0:00:11]} Ra8 {[%emt 0:00:17]} 48. Rb1 {[%emt 0:00:35]} Ra7 {[%emt 0:00:40]} 49. Rb2 {[%emt 0:00:12]} Ra8 {[%emt 0:00:35]} 50. Rb1 {[%emt 0:00:17]} Ra7 {[%emt 0:00:34]} 51. Rb2 {[%emt 0:00:12]} Ra8 1/2-1/2